[Event "FIDE World Cup G12-A 2024"]
[Site "Batumi"]
[Date "2024.06.27"]
[Round "5.11"]
[White "Giorgadze, Mariam"]
[Black "Wang, April"]
[Result "1-0"]
[ECO "B15"]
[WhiteElo "1533"]
[BlackElo "1622"]
[Annotator "NA RC"]
[PlyCount "135"]
[EventDate "2024.06.23"]
[EventType "swiss"]
[EventCountry "GEO"]
[SourceTitle "playchess.com"]
[Source "ChessBase"]
[SourceQuality "1"]
[TimeControl "5400+30"]

1. e4 {[%emt 0:00:02]} c6 {[%emt 0:00:06]} 2. d4 {[%emt 0:00:03]} d5 {[%emt 0:00:06]} 3. Nd2 {[%emt 0:00:03]} dxe4 {[%emt 0:00:09]} 4. Nxe4 {[%emt 0:00:03]} Nf6 {[%emt 0:00:12]} 5. Nxf6+ {[%emt 0:01:53]} exf6 {[%emt 0:00:09]} 6. c3 {[%emt 0:01:04]} Bd6 {[%emt 0:00:50]} 7. Bd3 {[%emt 0:03:00]} Be6 {[%emt 0:01:19]} 8. Ne2 {[%emt 0:00:38]} Qc7 {[%emt 0:03:32]} 9. h3 {[%emt 0:02:38]} Nd7 {[%emt 0:03:28]} 10. Qc2 {[%emt 0:02:40]} h6 {[%emt 0:01:42]} 11. Bd2 {[%emt 0:00:26]} O-O {[%emt 0:03:19]} 12. O-O {[%emt 0:01:18]} Rac8 {[%emt 0:02:23]} 13. Rfe1 {[%emt 0:03:43]} c5 {[%emt 0:02:40]} 14. Be4 {[%emt 0:06:10]} Nb6 {[%emt 0:05:13]} 15. dxc5 {[%emt 0:04:04]} Bxc5 {[%emt 0:01:13]} 16. Bf4 {[%emt 0:02:39]} Qe7 {[%emt 0:04:28]} 17. Ng3 {[%emt 0:03:08]} Rce8 {[%emt 0:18:48]} 18. b4 {[%emt 0:20:44]} Bd6 {[%emt 0:03:17]} 19. Bxd6 {[%emt 0:02:46]} Qxd6 {[%emt 0:00:08]} 20. Bxb7 {[%emt 0:00:21]} Rb8 {[%emt 0:01:37]} 21. Be4 {[%emt 0:05:37]} Rfc8 {[%emt 0:01:56]} 22. Bd3 {[%emt 0:04:44]} Nd5 {[%emt 0:01:58]} 23. Ne4 {[%emt 0:03:05]} Qb6 {[%emt 0:10:42]} 24. Qd2 {[%emt 0:03:41]} Bf5 {[%emt 0:03:56]} 25. Nc5 {[%emt 0:02:47]} Bxd3 {[%emt 0:03:17]} 26. Qxd3 {[%emt 0:02:46]} Qc6 {[%emt 0:01:48]} 27. Qf3 {[%emt 0:04:16]} Re8 {[%emt 0:05:09]} 28. Rad1 {[%emt 0:01:44]} Rxe1+ {[%emt 0:04:53]} 29. Rxe1 {[%emt 0:00:05]} Rc8 {[%emt 0:02:16]} 30. Rd1 {[%emt 0:01:13]} Nb6 {[%emt 0:00:35]} 31. Rd8+ {[%emt 0:02:46]} Kh7 {[%emt 0:00:47]} 32. Rxc8 {[%emt 0:00:14]} Qxc8 {[%emt 0:00:54]} 33. Qd3+ {[%emt 0:01:09]} g6 {[%emt 0:01:16]} 34. a3 {[%emt 0:05:38]} f5 {[%emt 0:02:11]} 35. Qa6 {[%emt 0:02:07]} Qe8 {[%emt 0:04:41]} 36. Kf1 {[%emt 0:04:11]} Nd5 {[%emt 0:01:50]} 37. Qc4 {[%emt 0:03:06]} Qe5 {[%emt 0:01:58]} 38. Qd4 {[%emt 0:01:06]} f6 {[%emt 0:02:32]} 39. Qxe5 {[%emt 0:01:05]} fxe5 {[%emt 0:00:06]} 40. Nd7 {[%emt 0:00:15]} Nxc3 {[%emt 0:00:28]} 41. Nxe5 {[%emt 0:00:09]} Kg7 {[%emt 0:00:41]} 42. Nc6 {[%emt 0:00:21]} a6 {[%emt 0:01:06]} 43. Nb8 {[%emt 0:00:38]} Nb5 {[%emt 0:00:17]} 44. a4 {[%emt 0:00:05]} Nc3 {[%emt 0:00:21]} 45. a5 {[%emt 0:00:07]} Nd5 {[%emt 0:00:27]} 46. Nxa6 {[%emt 0:00:06]} Kf6 {[%emt 0:00:12]} 47. g3 {[%emt 0:01:43]} Ke6 {[%emt 0:00:20]} 48. Ke2 {[%emt 0:00:21]} Kd6 {[%emt 0:00:31]} 49. Kd3 {[%emt 0:00:21]} f4 {[%emt 0:01:28]} 50. b5 {[%emt 0:01:48]} fxg3 {[%emt 0:00:31]} 51. fxg3 {[%emt 0:00:03]} h5 {[%emt 0:00:20]} 52. Kd4 {[%emt 0:00:09]} g5 {[%emt 0:00:24]} 53. Nc5 {[%emt 0:00:34]} Nc7 {[%emt 0:00:35]} 54. Ne4+ {[%emt 0:00:17]} Kd7 {[%emt 0:00:15]} 55. b6 {[%emt 0:00:46]} Na6 {[%emt 0:00:17]} 56. Nc5+ {[%emt 0:00:08]} Nxc5 {[%emt 0:00:18]} 57. Kxc5 {[%emt 0:00:04]} g4 {[%emt 0:00:11]} 58. hxg4 {[%emt 0:00:06]} hxg4 {[%emt 0:00:07]} 59. a6 {[%emt 0:00:08]} Kc8 {[%emt 0:00:11]} 60. Kc6 {[%emt 0:00:14]} Kb8 {[%emt 0:00:08]} 61. b7 {[%emt 0:00:05]} Ka7 {[%emt 0:00:08]} 62. Kc7 {[%emt 0:00:07]} Kxa6 {[%emt 0:00:18]} 63. b8=Q {[%emt 0:00:05]} Ka5 {[%emt 0:00:11]} 64. Kc6 {[%emt 0:00:07]} Ka4 {[%emt 0:00:05]} 65. Kc5 {[%emt 0:00:07]} Ka3 {[%emt 0:00:04]} 66. Kc4 {[%emt 0:00:06]} Ka2 {[%emt 0:00:03]} 67. Kc3 {[%emt 0:00:09]} Ka3 {[%emt 0:00:07]} 68. Qb3# {[%emt 0:00:09]} 1-0

[Event "FIDE World Cup G12-A 2024"]
[Site "Batumi"]
[Date "2024.06.28"]
[Round "6.1"]
[White "Zavivaeva, Kristina"]
[Black "Venskaya, Nika"]
[Result "0-1"]
[ECO "B76"]
[WhiteElo "1666"]
[BlackElo "1774"]
[Annotator "NA RC"]
[PlyCount "58"]
[EventDate "2024.06.23"]
[EventType "swiss"]
[EventCountry "GEO"]
[SourceTitle "playchess.com"]
[Source "ChessBase"]
[SourceQuality "1"]
[TimeControl "5400+30"]

1. e4 {[%emt 0:00:03]} c5 {[%emt 0:00:16]} 2. Nf3 {[%emt 0:00:18]} d6 {[%emt 0:00:04]} 3. d4 {[%emt 0:00:08]} cxd4 {[%emt 0:00:09]} 4. Nxd4 {[%emt 0:00:05]} Nf6 {[%emt 0:00:06]} 5. Nc3 {[%emt 0:00:10]} g6 {[%emt 0:00:17]} 6. Be3 {[%emt 0:01:17]} Bg7 {[%emt 0:00:08]} 7. Qd2 {[%emt 0:01:08]} O-O {[%emt 0:01:41]} 8. f3 {[%emt 0:00:28]} Nc6 {[%emt 0:00:07]} 9. g4 {[%emt 0:00:24]} Nxd4 {[%emt 0:00:53]} 10. Bxd4 {[%emt 0:00:16]} Be6 {[%emt 0:00:05]} 11. h4 {[%emt 0:02:26]} Qa5 {[%emt 0:10:18]} 12. h5 {[%emt 0:09:06]} a6 {[%emt 0:18:05]} 13. hxg6 {[%emt 0:10:54]} fxg6 {[%emt 0:00:56]} 14. Bh3 {[%emt 0:03:22]} g5 {[%emt 0:10:09]} 15. e5 {[%emt 0:09:24]} dxe5 {[%emt 0:13:33]} 16. Qxg5 {[%emt 0:03:49]} Nd7 {[%emt 0:01:06]} 17. Bf2 {[%emt 0:12:21]} Qb4 {[%emt 0:03:28]} 18. O-O-O {[%emt 0:05:07]} Rxf3 {[%emt 0:04:42]} 19. Be3 {[%emt 0:04:11]} h6 {[%emt 0:03:25]} 20. Qg6 {[%emt 0:00:39]} Nf8 {[%emt 0:00:14]} 21. Qd3 {[%emt 0:03:15]} e4 {[%emt 0:01:14]} 22. Qe2 {[%emt 0:05:33]} Bc4 {[%emt 0:04:29]} 23. Qe1 {[%emt 0:03:36]} Bxc3 {[%emt 0:01:03]} 24. bxc3 {[%emt 0:05:49]} Qa3+ {[%emt 0:00:42]} 25. Kd2 {[%emt 0:00:09]} Rd8+ {[%emt 0:00:10]} 26. Bd4 {[%emt 0:00:06]} e3+ {[%emt 0:00:17]} 27. Qxe3 {[%emt 0:01:45]} Rxe3 {[%emt 0:00:07]} 28. Kxe3 {[%emt 0:00:07]} Ng6 {[%emt 0:02:12]} 29. Bg2 {[%emt 0:01:00]} e5 {[%emt 0:00:58]} 0-1

[Event "FIDE World Cup G12-A 2024"]
[Site "Batumi"]
[Date "2024.06.28"]
[Round "6.2"]
[White "Xikmatkhonova, Mokhinur"]
[Black "Xue, Tianhao"]
[Result "0-1"]
[ECO "D00"]
[WhiteElo "1706"]
[BlackElo "1754"]
[Annotator "NA RC"]
[PlyCount "76"]
[EventDate "2024.06.23"]
[EventType "swiss"]
[EventCountry "GEO"]
[SourceTitle "playchess.com"]
[Source "ChessBase"]
[SourceQuality "1"]
[TimeControl "5400+30"]

1. d4 {[%emt 0:00:04]} Nf6 {[%emt 0:00:04]} 2. Nc3 {[%emt 0:00:06]} d5 {[%emt 0:00:06]} 3. Bf4 {[%emt 0:00:04]} Bf5 {[%emt 0:00:07]} 4. f3 {[%emt 0:00:06]} e6 {[%emt 0:00:06]} 5. g4 {[%emt 0:00:04]} Bg6 {[%emt 0:00:05]} 6. h4 {[%emt 0:00:02]} h5 {[%emt 0:00:09]} 7. g5 {[%emt 0:00:04]} Nfd7 {[%emt 0:00:05]} 8. e3 {[%emt 0:00:07]} Be7 {[%emt 0:00:07]} 9. Bd3 {[%emt 0:00:08]} O-O {[%emt 0:00:14]} 10. Bxg6 {[%emt 0:00:15]} fxg6 {[%emt 0:00:02]} 11. Qd3 {[%emt 0:00:19]} Kh7 {[%emt 0:00:13]} 12. Nge2 {[%emt 0:00:12]} c5 {[%emt 0:00:26]} 13. Qb5 {[%emt 0:36:05]} Qc8 {[%emt 0:19:03]} 14. Qd3 {[%emt 0:12:14]} Nc6 {[%emt 0:04:28]} 15. a3 {[%emt 0:09:34]} a6 {[%emt 0:10:43]} 16. Rf1 {[%emt 0:01:44]} b5 {[%emt 0:12:04]} 17. Bg3 {[%emt 0:02:09]} b4 {[%emt 0:03:12]} 18. axb4 {[%emt 0:03:08]} Nxb4 {[%emt 0:00:12]} 19. Qd2 {[%emt 0:03:04]} Nb6 {[%emt 0:01:12]} 20. b3 {[%emt 0:00:37]} Qd7 {[%emt 0:06:47]} 21. Kf2 {[%emt 0:02:50]} Bd6 {[%emt 0:05:44]} 22. Kg2 {[%emt 0:01:02]} Bxg3 {[%emt 0:02:36]} 23. Nxg3 {[%emt 0:00:23]} Qc7 {[%emt 0:02:25]} 24. Na4 {[%emt 0:00:38]} Nxa4 {[%emt 0:03:33]} 25. Rxa4 {[%emt 0:00:28]} Rab8 {[%emt 0:03:23]} 26. Ne2 {[%emt 0:04:39]} e5 {[%emt 0:11:05]} 27. dxe5 {[%emt 0:03:40]} Qxe5 {[%emt 0:00:55]} 28. c3 {[%emt 0:00:09]} Nc6 {[%emt 0:00:58]} 29. Rxa6 {[%emt 0:00:11]} Ne7 {[%emt 0:00:06]} 30. Nf4 {[%emt 0:01:10]} Nf5 {[%emt 0:01:54]} 31. Re6 {[%emt 0:11:53]} Nxh4+ {[%emt 0:02:06]} 32. Kf2 {[%emt 0:00:58]} Qxg5 {[%emt 0:01:32]} 33. Qxd5 {[%emt 0:04:49]} Rf5 {[%emt 0:02:12]} 34. Qd1 {[%emt 0:00:55]} Rd8 {[%emt 0:02:56]} 35. Rd6 {[%emt 0:02:43]} Rxf4 {[%emt 0:00:51]} 36. exf4 {[%emt 0:01:24]} Qg2+ {[%emt 0:00:09]} 37. Ke3 {[%emt 0:00:29]} Rxd6 {[%emt 0:00:16]} 38. Qxd6 {[%emt 0:00:32]} Nf5+ {[%emt 0:07:24]} 0-1

[Event "FIDE World Cup G12-A 2024"]
[Site "Batumi"]
[Date "2024.06.28"]
[Round "6.3"]
[White "Lu, Xiahan (Luna)"]
[Black "Kaminska, Zuzanna"]
[Result "0-1"]
[ECO "A47"]
[WhiteElo "1859"]
[BlackElo "1848"]
[Annotator "NA RC"]
[PlyCount "108"]
[EventDate "2024.06.23"]
[EventType "swiss"]
[EventCountry "GEO"]
[SourceTitle "playchess.com"]
[Source "ChessBase"]
[SourceQuality "1"]
[TimeControl "5400+30"]

1. d4 {[%emt 0:00:03]} Nf6 {[%emt 0:00:08]} 2. Nf3 {[%emt 0:00:14]} e6 {[%emt 0:00:17]} 3. e3 {[%emt 0:00:05]} b6 {[%emt 0:00:34]} 4. Bd3 {[%emt 0:00:23]} Bb7 {[%emt 0:00:30]} 5. b3 {[%emt 0:00:27]} Bb4+ {[%emt 0:01:08]} 6. c3 {[%emt 0:00:24]} Be7 {[%emt 0:00:16]} 7. Bb2 {[%emt 0:00:22]} Ne4 {[%emt 0:04:35]} 8. O-O {[%emt 0:02:18]} O-O {[%emt 0:00:44]} 9. c4 {[%emt 0:02:01]} d6 {[%emt 0:01:26]} 10. Qc2 {[%emt 0:03:42]} f5 $1 {[%emt 0:02:18] [#]} 11. d5 $14 {[%emt 0:13:21]} exd5 {[%emt 0:08:18]} 12. Nd4 {[%emt 0:03:57]} Qd7 {[%emt 0:05:36]} 13. f3 {[%emt 0:02:51]} c5 {[%emt 0:04:16]} 14. fxe4 {[%emt 0:07:28]} fxe4 {[%emt 0:08:14]} 15. Rxf8+ {[%emt 0:02:32]} Bxf8 {[%emt 0:00:41]} 16. Be2 {[%emt 0:04:57]} cxd4 {[%emt 0:00:42]} 17. Bxd4 {[%emt 0:01:30]} Nc6 {[%emt 0:06:20]} 18. Bb2 {[%emt 0:04:59]} dxc4 {[%emt 0:05:46]} 19. Qxe4 {[%emt 0:05:50]} d5 {[%emt 0:02:23]} 20. Qh4 {[%emt 0:05:25]} Bc5 {[%emt 0:08:45]} 21. bxc4 {[%emt 0:06:50]} Qe7 {[%emt 0:05:04]} 22. Qxe7 {[%emt 0:03:09]} Nxe7 {[%emt 0:00:18]} 23. Bd4 {[%emt 0:02:24]} Bxd4 {[%emt 0:08:47]} 24. exd4 {[%emt 0:00:37]} Nf5 {[%emt 0:00:22]} 25. Nc3 {[%emt 0:05:50]} Nxd4 {[%emt 0:01:05]} 26. Bd3 {[%emt 0:00:33]} dxc4 {[%emt 0:05:06]} 27. Bxc4+ {[%emt 0:00:08]} Kh8 {[%emt 0:03:50]} 28. Rd1 {[%emt 0:02:18]} Nf5 {[%emt 0:01:18]} 29. Re1 {[%emt 0:06:07]} g6 {[%emt 0:02:56]} 30. g4 {[%emt 0:02:45]} Nd6 {[%emt 0:02:31]} 31. Bb3 {[%emt 0:01:38]} Rc8 {[%emt 0:01:36]} 32. Re3 {[%emt 0:01:59]} b5 {[%emt 0:01:07]} 33. Rd3 {[%emt 0:01:02]} b4 {[%emt 0:00:51]} 34. Ne2 {[%emt 0:01:18]} Ba6 {[%emt 0:02:20]} 35. Rxd6 {[%emt 0:00:12]} Bxe2 {[%emt 0:00:06]} 36. h3 {[%emt 0:00:31]} Bb5 {[%emt 0:01:54]} 37. Rd5 {[%emt 0:01:04]} Rb8 {[%emt 0:00:44]} 38. Re5 {[%emt 0:01:13]} a5 {[%emt 0:01:09]} 39. Re4 {[%emt 0:01:22]} Be8 {[%emt 0:02:06]} 40. Re3 {[%emt 0:00:58]} a4 {[%emt 0:00:21]} 41. Be6 {[%emt 0:00:36]} Kg7 {[%emt 0:00:20]} 42. Kf2 {[%emt 0:01:11]} Bf7 {[%emt 0:00:19]} 43. Bxf7 {[%emt 0:02:16]} Kxf7 {[%emt 0:00:06]} 44. Re2 {[%emt 0:00:06]} Kf6 {[%emt 0:01:08]} 45. Kf3 {[%emt 0:01:01]} h6 {[%emt 0:03:02]} 46. h4 {[%emt 0:00:42]} b3 {[%emt 0:00:24]} 47. axb3 {[%emt 0:00:31]} axb3 {[%emt 0:00:19]} 48. Rb2 {[%emt 0:00:46]} Ke5 {[%emt 0:00:08]} 49. Ke3 {[%emt 0:00:44]} Rb4 {[%emt 0:00:46]} 50. h5 {[%emt 0:01:08]} g5 {[%emt 0:01:03]} 51. Kd2 {[%emt 0:01:36]} Kf4 {[%emt 0:00:59]} 52. Kc3 {[%emt 0:00:19]} Rb6 {[%emt 0:00:15]} 53. Rxb3 {[%emt 0:00:28]} Rxb3+ {[%emt 0:00:06]} 54. Kxb3 {[%emt 0:00:04]} Kxg4 {[%emt 0:00:04]} 0-1

[Event "FIDE World Cup G12-A 2024"]
[Site "Batumi"]
[Date "2024.06.28"]
[Round "6.4"]
[White "Kutateladze, Anastasia"]
[Black "Mirzaliyeva, Leyla"]
[Result "1/2-1/2"]
[ECO "B56"]
[WhiteElo "1598"]
[BlackElo "1548"]
[Annotator "NA RC"]
[PlyCount "74"]
[EventDate "2024.06.23"]
[EventType "swiss"]
[EventCountry "GEO"]
[SourceTitle "playchess.com"]
[Source "ChessBase"]
[SourceQuality "1"]
[TimeControl "5400+30"]

1. e4 {[%emt 0:00:01]} c5 {[%emt 0:00:06]} 2. Nf3 {[%emt 0:00:04]} d6 {[%emt 0:00:06]} 3. d4 {[%emt 0:00:04]} cxd4 {[%emt 0:00:04]} 4. Nxd4 {[%emt 0:00:03]} Nf6 {[%emt 0:00:05]} 5. Nc3 {[%emt 0:00:06]} e5 {[%emt 0:00:09]} 6. Bb5+ {[%emt 0:00:25]} Nbd7 {[%emt 0:00:11]} 7. Nf5 {[%emt 0:00:44]} a6 {[%emt 0:00:04]} 8. Be2 {[%emt 0:00:45]} Nc5 {[%emt 0:00:10]} 9. Ng3 {[%emt 0:01:38]} Be6 {[%emt 0:00:40]} 10. O-O {[%emt 0:03:59]} Be7 {[%emt 0:03:48]} 11. b4 {[%emt 0:06:22]} Ncd7 {[%emt 0:01:01]} 12. Nd5 {[%emt 0:01:09]} b5 {[%emt 0:11:39]} 13. c4 {[%emt 0:17:15]} Nb6 {[%emt 0:07:02]} 14. Nxe7 {[%emt 0:07:22]} Qxe7 {[%emt 0:01:11]} 15. cxb5 {[%emt 0:00:20]} d5 {[%emt 0:14:54]} 16. exd5 {[%emt 0:03:30]} Nfxd5 {[%emt 0:00:19]} 17. Bd2 {[%emt 0:03:04]} O-O {[%emt 0:07:15]} 18. a3 {[%emt 0:01:15]} Rfd8 {[%emt 0:00:41]} 19. Qe1 {[%emt 0:05:26]} Nf4 {[%emt 0:16:54]} 20. Bxf4 {[%emt 0:01:02]} exf4 {[%emt 0:00:12]} 21. Ne4 {[%emt 0:02:09]} Nc4 {[%emt 0:01:23]} 22. Kh1 {[%emt 0:03:06]} axb5 {[%emt 0:00:44]} 23. Qc1 {[%emt 0:07:01]} f5 {[%emt 0:21:07]} 24. Nc5 {[%emt 0:04:31]} Nd2 {[%emt 0:01:14]} 25. Re1 {[%emt 0:01:47]} Rac8 {[%emt 0:02:08]} 26. Bxb5 {[%emt 0:30:22]} Nb3 {[%emt 0:00:55]} 27. Qb1 {[%emt 0:00:00]} Nxc5 {[%emt 0:03:49]} 28. bxc5 {[%emt 0:00:00]} Rxc5 {[%emt 0:00:06]} 29. a4 {[%emt 0:00:00]} Qf6 {[%emt 0:00:44]} 30. Qb4 {[%emt 0:00:00]} Rdc8 {[%emt 0:01:06]} 31. Qxf4 {[%emt 0:00:00]} Bd5 {[%emt 0:01:05]} 32. f3 {[%emt 0:00:00]} Bb7 {[%emt 0:02:36]} 33. Rad1 {[%emt 0:00:00]} h6 {[%emt 0:00:53]} 34. h3 {[%emt 0:00:00]} Rc2 {[%emt 0:00:50]} 35. Bd3 {[%emt 0:00:00]} R2c5 {[%emt 0:00:28]} 36. Bb5 {[%emt 0:00:00]} Rc2 {[%emt 0:00:34]} 37. Bd3 {[%emt 0:00:00]} R2c5 {[%emt 0:00:11]} 1/2-1/2

[Event "FIDE World Cup G12-A 2024"]
[Site "Batumi"]
[Date "2024.06.28"]
[Round "6.5"]
[White "Wu, Yiting"]
[Black "Mamakova, Aknur"]
[Result "1/2-1/2"]
[ECO "B99"]
[WhiteElo "1758"]
[BlackElo "1648"]
[Annotator "NA RC"]
[PlyCount "195"]
[EventDate "2024.06.23"]
[EventType "swiss"]
[EventCountry "GEO"]
[SourceTitle "playchess.com"]
[Source "ChessBase"]
[SourceQuality "1"]
[TimeControl "5400+30"]

1. e4 {[%emt 0:00:02]} c5 {[%emt 0:00:05]} 2. Nf3 {[%emt 0:00:07]} d6 {[%emt 0:00:06]} 3. d4 {[%emt 0:00:05]} cxd4 {[%emt 0:00:06]} 4. Nxd4 {[%emt 0:00:06]} Nf6 {[%emt 0:00:07]} 5. Nc3 {[%emt 0:00:07]} a6 {[%emt 0:00:06]} 6. Bg5 {[%emt 0:00:09]} e6 {[%emt 0:00:11]} 7. f4 {[%emt 0:00:07]} Be7 {[%emt 0:00:06]} 8. Qf3 {[%emt 0:00:15]} h6 {[%emt 0:00:17]} 9. Bh4 {[%emt 0:01:06]} Qc7 {[%emt 0:00:21]} 10. O-O-O {[%emt 0:05:56]} Nbd7 {[%emt 0:00:23]} 11. g4 {[%emt 0:05:36]} g5 {[%emt 0:00:33]} 12. fxg5 {[%emt 0:02:11]} Ne5 {[%emt 0:01:50]} 13. Qg3 {[%emt 0:07:55]} Nfxg4 {[%emt 0:00:42]} 14. gxh6 {[%emt 0:01:28]} Bxh4 {[%emt 0:00:28]} 15. Qxh4 {[%emt 0:00:03]} Qe7 {[%emt 0:00:22]} 16. Qg3 {[%emt 0:09:12]} Rxh6 {[%emt 0:09:12]} 17. h3 {[%emt 0:07:08]} Nf6 {[%emt 0:05:58]} 18. Nf3 {[%emt 0:05:26]} Rg6 {[%emt 0:07:58]} 19. Qf2 {[%emt 0:02:18]} Nxf3 {[%emt 0:03:29]} 20. Qxf3 {[%emt 0:00:07]} Bd7 {[%emt 0:01:24]} 21. Bd3 {[%emt 0:07:43]} Bc6 {[%emt 0:13:45]} 22. Qf2 {[%emt 0:15:41]} Nd7 {[%emt 0:05:39]} 23. Rhf1 {[%emt 0:09:50]} Ne5 {[%emt 0:04:52]} 24. Qb6 {[%emt 0:01:32]} Qd8 {[%emt 0:06:53]} 25. Qd4 {[%emt 0:02:31]} Qg5+ {[%emt 0:05:08]} 26. Kb1 {[%emt 0:00:36]} O-O-O {[%emt 0:03:08]} 27. Na4 {[%emt 0:03:57]} Kb8 {[%emt 0:06:27]} 28. Nb6 {[%emt 0:01:47]} Qh5 {[%emt 0:06:20]} 29. Nc4 {[%emt 0:02:20]} Nxc4 {[%emt 0:03:49]} 30. Bxc4 {[%emt 0:00:16]} Rgg8 {[%emt 0:02:45]} 31. a3 {[%emt 0:04:18]} Kc7 {[%emt 0:02:46]} 32. Qe3 {[%emt 0:03:42]} Rd7 {[%emt 0:01:30]} 33. Rd2 {[%emt 0:01:57]} Qh4 {[%emt 0:00:54]} 34. Rdf2 {[%emt 0:00:59]} Rg3 {[%emt 0:03:48]} 35. Qf4 {[%emt 0:00:48]} Qxh3 {[%emt 0:02:00]} 36. Bd3 {[%emt 0:00:21]} Rg4 {[%emt 0:00:40]} 37. Qd2 {[%emt 0:00:29]} Rg7 {[%emt 0:01:59]} 38. Qa5+ {[%emt 0:00:12]} Kb8 {[%emt 0:00:49]} 39. Qb6 {[%emt 0:00:17]} Qg4 {[%emt 0:00:55]} 40. Rf4 {[%emt 0:00:17]} Qg2 {[%emt 0:00:32]} 41. Ka2 {[%emt 0:00:50]} d5 {[%emt 0:00:57]} 42. R4f2 {[%emt 0:00:38]} Qg5 {[%emt 0:00:16]} 43. exd5 {[%emt 0:00:55]} Qxd5+ {[%emt 0:00:27]} 44. b3 {[%emt 0:00:17]} Bb5 {[%emt 0:01:05]} 45. Bxb5 {[%emt 0:00:47]} Qxb5 {[%emt 0:00:07]} 46. Qe3 {[%emt 0:00:20]} Rc7 {[%emt 0:00:55]} 47. Rh1 {[%emt 0:00:26]} Qe8 {[%emt 0:00:42]} 48. Rfh2 {[%emt 0:00:06]} Rg8 {[%emt 0:00:17]} 49. Qe5 {[%emt 0:00:16]} Qc6 {[%emt 0:00:50]} 50. Kb2 {[%emt 0:00:56]} Ka7 {[%emt 0:00:31]} 51. Rd1 {[%emt 0:00:32]} Rgc8 {[%emt 0:00:34]} 52. Kb1 {[%emt 0:00:46]} Qc5 {[%emt 0:00:23]} 53. Qb2 {[%emt 0:00:27]} Rg8 {[%emt 0:00:50]} 54. Ka2 {[%emt 0:00:36]} Rg1 {[%emt 0:00:24]} 55. Rd3 {[%emt 0:00:31]} Rg5 {[%emt 0:00:39]} 56. Rhd2 {[%emt 0:00:22]} Rg8 {[%emt 0:00:37]} 57. Rd4 {[%emt 0:00:33]} Qe5 {[%emt 0:00:23]} 58. Qc1 {[%emt 0:00:29]} Rgc8 {[%emt 0:00:22]} 59. R4d3 {[%emt 0:00:36]} Qg5 {[%emt 0:00:20]} 60. Kb2 {[%emt 0:00:32]} Qe5+ {[%emt 0:00:26]} 61. Ka2 {[%emt 0:00:12]} Qc5 {[%emt 0:00:49]} 62. Qd1 {[%emt 0:00:45]} Qf5 {[%emt 0:00:33]} 63. Qg1+ {[%emt 0:00:24]} Ka8 {[%emt 0:00:15]} 64. Qd1 {[%emt 0:00:31]} e5 {[%emt 0:00:32]} 65. Kb1 {[%emt 0:00:35]} e4 {[%emt 0:00:26]} 66. Rd5 {[%emt 0:00:17]} Qh3 {[%emt 0:00:39]} 67. Rh5 {[%emt 0:00:47]} Qg3 {[%emt 0:00:28]} 68. Rf5 {[%emt 0:00:31]} e3 {[%emt 0:00:43]} 69. Rf3 {[%emt 0:00:32]} Qg5 {[%emt 0:00:13]} 70. Re2 {[%emt 0:00:22]} Rc3 {[%emt 0:00:51]} 71. Qe1 {[%emt 0:00:34]} Qg6 {[%emt 0:00:18]} 72. Rfxe3 {[%emt 0:00:34]} Rxe3 {[%emt 0:00:10]} 73. Rxe3 {[%emt 0:00:03]} Qxc2+ {[%emt 0:00:32]} 74. Ka1 {[%emt 0:00:01]} Qc1+ {[%emt 0:00:22]} 75. Qxc1 {[%emt 0:00:13]} Rxc1+ {[%emt 0:00:02]} 76. Kb2 {[%emt 0:00:01]} Rc6 {[%emt 0:00:20]} 77. Re8+ {[%emt 0:00:22]} Ka7 {[%emt 0:00:02]} 78. Rf8 {[%emt 0:00:04]} f6 {[%emt 0:00:13]} 79. b4 {[%emt 0:00:35]} Kb6 {[%emt 0:00:28]} 80. Rf7 {[%emt 0:00:22]} Rd6 {[%emt 0:00:34]} 81. Kc3 {[%emt 0:01:21]} Kc6 {[%emt 0:00:08]} 82. a4 {[%emt 0:00:43]} b5 {[%emt 0:00:30]} 83. axb5+ {[%emt 0:00:31]} Kxb5 {[%emt 0:00:51]} 84. Kb3 {[%emt 0:01:05]} Rc6 {[%emt 0:01:19]} 85. Rb7+ {[%emt 0:00:28]} Rb6 {[%emt 0:00:03]} 86. Rc7 {[%emt 0:00:38]} Re6 {[%emt 0:00:11]} 87. Rf7 {[%emt 0:00:36]} Rd6 {[%emt 0:02:11]} 88. Rf8 {[%emt 0:00:26]} Rd3+ {[%emt 0:00:37]} 89. Kc2 {[%emt 0:00:19]} Rf3 {[%emt 0:00:10]} 90. Rb8+ {[%emt 0:00:32]} Kc4 {[%emt 0:00:04]} 91. Rb6 {[%emt 0:00:25]} Rf2+ {[%emt 0:00:18]} 92. Kd1 {[%emt 0:00:21]} f5 {[%emt 0:00:26]} 93. Rxa6 {[%emt 0:00:18]} Kxb4 {[%emt 0:00:06]} 94. Ke1 {[%emt 0:00:12]} Rc2 {[%emt 0:00:17]} 95. Rf6 {[%emt 0:00:15]} Rc5 {[%emt 0:00:28]} 96. Ke2 {[%emt 0:00:20]} Kc4 {[%emt 0:01:30]} 97. Kf3 {[%emt 0:00:22]} Kd4 {[%emt 0:00:36]} 98. Kf4 {[%emt 0:03:01]} 1/2-1/2

[Event "FIDE World Cup G12-A 2024"]
[Site "Batumi"]
[Date "2024.06.28"]
[Round "6.6"]
[White "Chichinadze, Anastasia"]
[Black "Sevastsyanchuk, Anastasiya"]
[Result "0-1"]
[ECO "B18"]
[WhiteElo "1724"]
[BlackElo "1531"]
[Annotator "NA RC"]
[PlyCount "82"]
[EventDate "2024.06.23"]
[EventType "swiss"]
[EventCountry "GEO"]
[SourceTitle "playchess.com"]
[Source "ChessBase"]
[SourceQuality "1"]
[TimeControl "5400+30"]

1. e4 {[%emt 0:00:02]} c6 {[%emt 0:00:05]} 2. d4 {[%emt 0:00:04]} d5 {[%emt 0:00:04]} 3. Nd2 {[%emt 0:00:03]} dxe4 {[%emt 0:00:05]} 4. Nxe4 {[%emt 0:00:06]} Bf5 {[%emt 0:00:05]} 5. Ng3 {[%emt 0:00:04]} Bg6 {[%emt 0:00:05]} 6. Bc4 {[%emt 0:00:09]} Nf6 {[%emt 0:01:38]} 7. N1e2 {[%emt 0:00:11]} Nbd7 {[%emt 0:03:27]} 8. Nf4 {[%emt 0:02:36]} e5 {[%emt 0:01:24]} 9. Nxg6 {[%emt 0:03:46]} hxg6 {[%emt 0:00:06]} 10. O-O {[%emt 0:03:00]} Bd6 {[%emt 0:05:13]} 11. Re1 {[%emt 0:06:06]} Qc7 {[%emt 0:04:18]} 12. c3 {[%emt 0:26:09]} O-O-O {[%emt 0:10:02]} 13. d5 {[%emt 0:33:53]} Nb6 {[%emt 0:01:10]} 14. Bb3 {[%emt 0:01:21]} cxd5 {[%emt 0:00:19]} 15. Be3 {[%emt 0:01:17]} Nc4 {[%emt 0:00:59]} 16. Bxc4 {[%emt 0:01:53]} dxc4 {[%emt 0:00:12]} 17. Qa4 {[%emt 0:00:19]} b6 {[%emt 0:00:54]} 18. b3 {[%emt 0:01:31]} cxb3 {[%emt 0:00:40]} 19. axb3 {[%emt 0:00:04]} Kb8 {[%emt 0:00:18]} 20. Re2 {[%emt 0:01:37]} Rd7 {[%emt 0:07:13]} 21. c4 {[%emt 0:05:01]} Bc5 {[%emt 0:09:27]} 22. Bxc5 {[%emt 0:02:38]} Qxc5 {[%emt 0:00:27]} 23. Ne4 {[%emt 0:00:52]} Qc7 {[%emt 0:01:20]} 24. Nc3 {[%emt 0:00:37]} e4 {[%emt 0:10:29]} 25. g3 {[%emt 0:04:43]} Re7 {[%emt 0:01:25]} 26. Nb5 {[%emt 0:01:10]} Qd7 {[%emt 0:00:15]} 27. h4 {[%emt 0:00:47]} g5 {[%emt 0:10:32]} 28. Qb4 {[%emt 0:01:45]} a5 {[%emt 0:01:18]} 29. Qc3 {[%emt 0:00:24]} gxh4 {[%emt 0:01:51]} 30. Qe3 {[%emt 0:00:28]} Qe6 {[%emt 0:03:11]} 31. Nd4 {[%emt 0:00:40]} Qc8 {[%emt 0:05:14]} 32. Qf4+ {[%emt 0:00:30]} Ka8 {[%emt 0:00:36]} 33. Nf5 {[%emt 0:00:42]} hxg3 {[%emt 0:01:05]} 34. fxg3 {[%emt 0:00:43]} Qc5+ {[%emt 0:00:26]} 35. Kg2 {[%emt 0:01:01]} Qe5 {[%emt 0:03:14]} 36. Qf1 {[%emt 0:01:10]} Ng4 {[%emt 0:02:44]} 37. Rae1 {[%emt 0:00:48]} Rh2+ {[%emt 0:02:26]} 38. Kg1 {[%emt 0:00:05]} Qc5+ {[%emt 0:00:13]} 39. Ne3 {[%emt 0:00:10]} Qh5 {[%emt 0:01:15]} 40. Nxg4 {[%emt 0:01:01]} Rh1+ {[%emt 0:00:08]} 41. Kg2 {[%emt 0:00:07]} Qh3+ {[%emt 0:00:14]} 0-1